[Event "Najdorf Memorial-A 2022"]
[Site "Warsaw"]
[Date "2022.07.12"]
[Round "4.6"]
[White "Chomczyk, Marek"]
[Black "Vanduyfhuys, Daria"]
[Result "1-0"]
[ECO "B23"]
[WhiteElo "2290"]
[BlackElo "2094"]
[Annotator "ChessBase"]
[PlyCount "105"]
[EventDate "2022.07.09"]
[EventType "swiss"]
[EventCountry "POL"]
[SourceTitle "playchess.com"]
[Source "ChessBase"]
[SourceQuality "1"]
[TimeControl "40/5400+30:1800+30"]

1. e4 {[%emt 0:00:03]} c5 {[%emt 0:00:06]} 2. Nc3 {[%emt 0:00:06]} d6 {[%emt 0:00:11]} 3. d4 {[%emt 0:00:06]} cxd4 {[%emt 0:00:06]} 4. Qxd4 {[%emt 0:00:05]} Nc6 {[%emt 0:00:10]} 5. Qd2 {[%emt 0:00:06]} g6 {[%emt 0:00:17]} 6. b3 {[%emt 0:00:07]} Bh6 {[%emt 0:00:13]} 7. f4 {[%emt 0:00:09]} Nf6 {[%emt 0:00:17]} 8. Bb2 {[%emt 0:00:18]} e5 {[%emt 0:00:58]} 9. g3 {[%emt 0:02:39]} exf4 {[%emt 0:04:06]} 10. O-O-O {[%emt 0:16:04]} Bg4 {[%emt 0:04:11]} 11. Re1 {[%emt 0:19:18]} O-O {[%emt 0:05:28]} 12. Kb1 {[%emt 0:21:00]} Nh5 {[%emt 0:09:51]} 13. Be2 {[%emt 0:08:16]} Ne5 {[%emt 0:30:59]} 14. Nd5 {[%emt 0:13:07]} fxg3 {[%emt 0:16:36]} 15. Qxh6 {[%emt 0:00:13]} g2 {[%emt 0:00:06]} 16. Nh3 {[%emt 0:02:17]} gxh1=Q {[%emt 0:01:19]} 17. Rxh1 {[%emt 0:00:03]} Bxh3 {[%emt 0:00:46]} 18. Bxh5 Bg2 {[%emt 0:02:43]} 19. Re1 {[%emt 0:03:37]} Qh4 {[%emt 0:02:24]} 20. Qd2 {[%emt 0:00:06]} Kg7 {[%emt 0:04:52]} 21. Nf4 {[%emt 0:01:35]} Rad8 {[%emt 0:02:01]} 22. Nxg2 {[%emt 0:04:26]} Qxh5 {[%emt 0:00:08]} 23. Ne3 {[%emt 0:00:03]} f6 {[%emt 0:02:17]} 24. Rf1 {[%emt 0:00:39]} Qh3 {[%emt 0:06:07]} 25. a4 {[%emt 0:04:59]} Rd7 {[%emt 0:02:20]} 26. Rf2 {[%emt 0:01:49]} Qh4 {[%emt 0:00:41]} 27. Rf4 {[%emt 0:00:15]} Qg5 {[%emt 0:01:57]} 28. h4 {[%emt 0:00:30]} Qg1+ {[%emt 0:01:09]} 29. Rf1 {[%emt 0:00:04]} Qg3 {[%emt 0:00:03]} 30. h5 {[%emt 0:00:59]} Qh4 {[%emt 0:00:42]} 31. hxg6 {[%emt 0:02:18]} hxg6 {[%emt 0:00:04]} 32. Qd4 {[%emt 0:00:36]} Qh3 {[%emt 0:00:59]} 33. Qxa7 {[%emt 0:00:31]} Ng4 {[%emt 0:00:30]} 34. Re1 {[%emt 0:00:33]} Qg3 {[%emt 0:00:10]} 35. Re2 {[%emt 0:00:32]} Qf3 {[%emt 0:00:52]} 36. Nxg4 {[%emt 0:00:08]} Qxe2 {[%emt 0:00:13]} 37. Ne3 {[%emt 0:00:03]} Rff7 {[%emt 0:00:44]} 38. Qd4 {[%emt 0:00:12]} Qe1+ {[%emt 0:00:39]} 39. Ka2 {[%emt 0:00:06]} b5 {[%emt 0:00:51]} 40. Bc3 {[%emt 0:00:00]} Qh1 {[%emt 0:00:00]} 41. Nd5 Qf3 {[%emt 0:11:28]} 42. a5 {[%emt 0:06:17]} Rd8 {[%emt 0:00:40]} 43. Qb6 {[%emt 0:10:05]} Re8 {[%emt 0:01:56]} 44. Kb2 {[%emt 0:02:54]} Qxe4 {[%emt 0:02:40]} 45. Nc7 {[%emt 0:00:40]} Rh8 {[%emt 0:07:13]} 46. Qxd6 Rh1 {[%emt 0:02:03]} 47. Ne6+ {[%emt 0:06:06]} Kh7 {[%emt 0:01:23]} 48. Nd8 {[%emt 0:00:19]} Qe3 {[%emt 0:06:44]} 49. Nxf7 {[%emt 0:00:40]} Qc1+ {[%emt 0:00:03]} 50. Ka2 {[%emt 0:00:04]} Qxc2+ {[%emt 0:00:56]} 51. Bb2 {[%emt 0:00:05]} Rh2 {[%emt 0:00:06]} 52. Qxf6 Qxb2+ {[%emt 0:02:12]} 53. Qxb2 {[%emt 0:00:35]} 1-0

[Event "Najdorf Memorial-A 2022"]
[Site "Warsaw"]
[Date "2022.07.12"]
[Round "4.6"]
[White "Zdybel, Przemyslaw"]
[Black "Lee, Hyuk"]
[Result "1-0"]
[ECO "B33"]
[WhiteElo "2026"]
[BlackElo "1880"]
[Annotator "ChessBase"]
[PlyCount "95"]
[EventDate "2022.07.09"]
[EventType "swiss"]
[EventCountry "POL"]
[SourceTitle "playchess.com"]
[Source "ChessBase"]
[SourceQuality "1"]
[TimeControl "40/5400+30:1800+30"]

1. e4 {[%emt 0:00:03]} c5 {[%emt 0:00:08]} 2. Nc3 {[%emt 0:00:12]} Nc6 {[%emt 0:00:06]} 3. Nf3 {[%emt 0:01:20]} Nf6 {[%emt 0:01:08]} 4. d4 {[%emt 0:00:15]} cxd4 {[%emt 0:00:04]} 5. Nxd4 {[%emt 0:00:03]} e5 {[%emt 0:00:13]} 6. Ndb5 {[%emt 0:00:08]} d6 {[%emt 0:00:09]} 7. Bg5 {[%emt 0:00:07]} a6 {[%emt 0:00:05]} 8. Na3 {[%emt 0:00:07]} b5 {[%emt 0:00:03]} 9. Nd5 {[%emt 0:00:03]} Be7 {[%emt 0:00:06]} 10. Bxf6 {[%emt 0:00:05]} Bxf6 {[%emt 0:00:06]} 11. c3 {[%emt 0:00:10]} O-O {[%emt 0:00:07]} 12. Nc2 {[%emt 0:00:07]} Bg5 {[%emt 0:00:04]} 13. a4 {[%emt 0:06:10]} bxa4 {[%emt 0:00:09]} 14. Rxa4 {[%emt 0:00:10]} a5 {[%emt 0:00:04]} 15. Bc4 {[%emt 0:01:32]} Kh8 {[%emt 0:00:17]} 16. b3 {[%emt 0:03:45]} Rb8 {[%emt 0:02:53]} 17. Nce3 {[%emt 0:06:53]} Bd7 {[%emt 0:00:59]} 18. Ra2 {[%emt 0:06:22]} Ne7 {[%emt 0:02:11]} 19. O-O {[%emt 0:05:17]} Bxe3 {[%emt 0:15:52]} 20. Nxe3 {[%emt 0:01:24]} Bc6 {[%emt 0:05:43]} 21. Rd2 {[%emt 0:13:29]} Bxe4 {[%emt 0:01:53]} 22. Rxd6 {[%emt 0:00:28]} Qc8 {[%emt 0:02:04]} 23. Rd7 {[%emt 0:02:59]} Rb7 {[%emt 0:02:53]} 24. Rxb7 {[%emt 0:05:19]} Bxb7 {[%emt 0:01:31]} 25. Qd6 {[%emt 0:03:07]} Ng6 {[%emt 0:03:44]} 26. Rd1 {[%emt 0:15:41]} f5 {[%emt 0:10:21]} 27. Be6 {[%emt 0:15:09]} Qa8 {[%emt 0:10:41]} 28. Bxf5 {[%emt 0:02:47]} Nf4 {[%emt 0:04:24]} 29. Qxe5 {[%emt 0:00:30]} Nxg2 {[%emt 0:01:09]} 30. Rd7 {[%emt 0:01:22]} Rg8 {[%emt 0:06:55]} 31. Nxg2 {[%emt 0:00:36]} Bxg2 {[%emt 0:00:14]} 32. Qg3 {[%emt 0:09:02]} Be4 {[%emt 0:08:35]} 33. Be6 {[%emt 0:01:24]} Qe8 {[%emt 0:01:34]} 34. Qg4 {[%emt 0:00:33]} Bc6 {[%emt 0:02:14]} 35. Rc7 {[%emt 0:00:43]} Bf3 {[%emt 0:02:20]} 36. Qf5 {[%emt 0:00:19]} Rf8 {[%emt 0:03:44]} 37. Rf7 {[%emt 0:00:23]} Rxf7 {[%emt 0:00:44]} 38. Qxf7 {[%emt 0:00:02]} Qa8 {[%emt 0:04:37]} 39. c4 {[%emt 0:00:01]} Be2 {[%emt 0:04:44]} 40. Qe7 {[%emt 0:00:00]} Qb8 {[%emt 0:00:00]} 41. Bd5 {[%emt 0:08:35]} Bd1 {[%emt 0:09:39]} 42. c5 {[%emt 0:01:47]} h5 {[%emt 0:01:39]} 43. c6 {[%emt 0:02:10]} Qf4 {[%emt 0:01:05]} 44. Qe8+ {[%emt 0:00:06]} Kh7 {[%emt 0:00:08]} 45. Qe4+ {[%emt 0:00:03]} Qxe4 {[%emt 0:00:10]} 46. Bxe4+ {[%emt 0:00:02]} Kh6 {[%emt 0:00:17]} 47. c7 {[%emt 0:00:04]} Bg4 {[%emt 0:00:06]} 48. Bb7 {[%emt 0:00:04]} 1-0

[Event "Najdorf Memorial-A 2022"]
[Site "Warsaw"]
[Date "2022.07.12"]
[Round "4.7"]
[White "Liberadzki, Slawomir"]
[Black "Nowak, Lukasz"]
[Result "1/2-1/2"]
[ECO "A22"]
[WhiteElo "2035"]
[BlackElo "2327"]
[Annotator "ChessBase"]
[PlyCount "70"]
[EventDate "2022.07.09"]
[EventType "swiss"]
[EventCountry "POL"]
[SourceTitle "playchess.com"]
[Source "ChessBase"]
[SourceQuality "1"]
[TimeControl "40/5400+30:1800+30"]

1. c4 e5 2. Nc3 Nf6 3. g3 c6 4. Nf3 e4 5. Nd4 Qb6 6. e3 d5 7. cxd5 cxd5 8. d3 Bb4 9. Bg2 O-O 10. O-O Nc6 11. dxe4 Bxc3 12. Nxc6 bxc6 13. bxc3 dxe4 14. Qc2 Re8 15. c4 Ba6 16. Bb2 Bxc4 17. Bd4 c5 18. Qxc4 cxd4 19. Qxd4 Qa5 20. Rfc1 Rad8 21. Rc5 Qb6 22. Qc3 Rd3 23. Qc2 Red8 24. Rb1 Qd6 25. Rc8 h5 26. h3 Rd2 27. Rxd8+ Qxd8 28. Qc4 Qe7 29. Rb8+ Kh7 30. Rb4 Rxa2 31. Bxe4+ Nxe4 32. Qxe4+ Qxe4 33. Rxe4 g5 34. h4 f6 35. hxg5 fxg5 1/2-1/2

[Event "Najdorf Memorial-A 2022"]
[Site "Warsaw"]
[Date "2022.07.12"]
[Round "4.7"]
[White "Maslanka, Wojciech"]
[Black "Haliniak, Wojciech"]
[Result "1-0"]
[ECO "B36"]
[WhiteElo "2000"]
[BlackElo "1827"]
[Annotator "ChessBase"]
[PlyCount "113"]
[EventDate "2022.07.09"]
[EventType "swiss"]
[EventCountry "POL"]
[SourceTitle "playchess.com"]
[Source "ChessBase"]
[SourceQuality "1"]
[TimeControl "40/5400+30:1800+30"]

1. e4 {[%emt 0:00:04]} c5 {[%emt 0:01:13]} 2. Nf3 {[%emt 0:00:51]} g6 {[%emt 0:00:08]} 3. d4 {[%emt 0:00:05]} cxd4 {[%emt 0:00:05]} 4. Nxd4 {[%emt 0:00:04]} Nc6 {[%emt 0:00:19]} 5. c4 {[%emt 0:00:26]} Nf6 {[%emt 0:00:48]} 6. Nc3 {[%emt 0:00:14]} d6 {[%emt 0:00:13]} 7. f3 {[%emt 0:00:28]} Nxd4 {[%emt 0:00:25]} 8. Qxd4 {[%emt 0:00:07]} Bg7 {[%emt 0:00:07]} 9. Be3 {[%emt 0:00:13]} O-O {[%emt 0:00:23]} 10. Qd2 {[%emt 0:00:09]} Qa5 {[%emt 0:01:49]} 11. Rc1 {[%emt 0:01:41]} Be6 {[%emt 0:00:55]} 12. Be2 {[%emt 0:00:28]} Rfc8 {[%emt 0:00:13]} 13. b3 {[%emt 0:00:05]} a6 {[%emt 0:06:32]} 14. Na4 {[%emt 0:01:21]} Qxd2+ {[%emt 0:00:09]} 15. Kxd2 {[%emt 0:00:07]} Nd7 {[%emt 0:00:19]} 16. g4 {[%emt 0:00:18]} f5 {[%emt 0:17:15]} 17. gxf5 {[%emt 0:00:06]} gxf5 {[%emt 0:00:07]} 18. Rhg1 {[%emt 0:01:01]} Kh8 {[%emt 0:03:03]} 19. Nc3 {[%emt 0:30:07]} Rf8 {[%emt 0:16:38]} 20. exf5 {[%emt 0:09:36]} Bxf5 {[%emt 0:02:17]} 21. Rg2 {[%emt 0:04:07]} Ne5 {[%emt 0:11:06]} 22. Rcg1 {[%emt 0:00:55]} Ng6 {[%emt 0:11:05]} 23. Ne4 {[%emt 0:12:32]} Be5 {[%emt 0:01:29]} 24. Bd3 {[%emt 0:10:25]} Nf4 {[%emt 0:12:14]} 25. Bxf4 {[%emt 0:00:53]} Bxf4+ {[%emt 0:00:02]} 26. Ke2 {[%emt 0:01:18]} Bh6 {[%emt 0:05:45]} 27. Nf2 {[%emt 0:01:03]} Bxd3+ {[%emt 0:01:55]} 28. Nxd3 {[%emt 0:00:21]} Rf6 {[%emt 0:00:44]} 29. Rg4 {[%emt 0:01:17]} b5 {[%emt 0:00:28]} 30. Re4 {[%emt 0:04:07]} bxc4 {[%emt 0:00:48]} 31. bxc4 {[%emt 0:15:14]} e6 {[%emt 0:00:45]} 32. Rd4 {[%emt 0:01:00]} e5 {[%emt 0:03:22]} 33. Rd5 {[%emt 0:00:45]} Rc8 {[%emt 0:01:04]} 34. Rg4 {[%emt 0:01:37]} Bf8 {[%emt 0:00:51]} 35. Ra5 {[%emt 0:00:47]} Rh6 {[%emt 0:00:37]} 36. h4 {[%emt 0:00:34]} Rc6 {[%emt 0:00:49]} 37. Nb4 {[%emt 0:01:28]} Rb6 {[%emt 0:00:05]} 38. a3 {[%emt 0:00:05]} Be7 {[%emt 0:00:32]} 39. Nd5 {[%emt 0:01:50]} Rb2+ {[%emt 0:00:07]} 40. Kd3 {[%emt 0:00:00]} Bxh4 {[%emt 0:00:00]} 41. Rxa6 {[%emt 0:01:34]} Rb8 {[%emt 0:01:47]} 42. c5 {[%emt 0:01:16]} Bd8 {[%emt 0:04:15]} 43. cxd6 {[%emt 0:05:15]} Rh3 {[%emt 0:03:18]} 44. Ke4 {[%emt 0:00:25]} h5 {[%emt 0:00:20]} 45. Rg1 {[%emt 0:04:14]} Kh7 {[%emt 0:02:56]} 46. Ra7+ {[%emt 0:00:49]} Kh6 {[%emt 0:00:05]} 47. Rag7 {[%emt 0:00:29]} h4 {[%emt 0:00:14]} 48. Rg8 {[%emt 0:00:27]} Rg3 {[%emt 0:01:30]} 49. R1xg3 {[%emt 0:00:34]} hxg3 {[%emt 0:00:03]} 50. Rxg3 {[%emt 0:00:15]} Ra8 {[%emt 0:00:09]} 51. Rg8 {[%emt 0:06:50]} Ra4+ {[%emt 0:00:07]} 52. Kxe5 {[%emt 0:00:08]} Ba5 {[%emt 0:00:08]} 53. d7 {[%emt 0:01:13]} Rxa3 {[%emt 0:00:07]} 54. f4 {[%emt 0:00:08]} Ra1 {[%emt 0:01:47]} 55. d8=Q {[%emt 0:00:29]} Re1+ {[%emt 0:00:08]} 56. Kf6 {[%emt 0:00:45]} Bxd8+ {[%emt 0:00:03]} 57. Rxd8 {[%emt 0:00:09]} 1-0

[Event "Najdorf Memorial-A 2022"]
[Site "Warsaw"]
[Date "2022.07.12"]
[Round "4.8"]
[White "Mickiewicz, Piotr"]
[Black "Goraj, Barbara"]
[Result "1-0"]
[ECO "A14"]
[WhiteElo "2284"]
[BlackElo "2035"]
[Annotator "ChessBase"]
[PlyCount "93"]
[EventDate "2022.07.09"]
[EventType "swiss"]
[EventCountry "POL"]
[SourceTitle "playchess.com"]
[Source "ChessBase"]
[SourceQuality "1"]
[TimeControl "40/5400+30:1800+30"]

1. c4 {[%emt 0:00:12]} e6 {[%emt 0:00:53]} 2. g3 {[%emt 0:00:59]} Nf6 {[%emt 0:00:24]} 3. Bg2 {[%emt 0:02:06]} d5 {[%emt 0:00:10]} 4. Nf3 {[%emt 0:01:18]} Be7 {[%emt 0:00:31]} 5. O-O {[%emt 0:01:04]} O-O {[%emt 0:00:38]} 6. d4 {[%emt 0:10:33]} dxc4 {[%emt 0:00:38]} 7. Qc2 {[%emt 0:00:20]} c6 {[%emt 0:00:41]} 8. Qxc4 {[%emt 0:00:50]} b5 {[%emt 0:00:31]} 9. Qc2 {[%emt 0:00:52]} Bb7 {[%emt 0:01:37]} 10. Nc3 {[%emt 0:16:35]} Qb6 {[%emt 0:04:22]} 11. Bg5 {[%emt 0:15:30]} c5 {[%emt 0:14:15]} 12. dxc5 {[%emt 0:06:44]} Qxc5 {[%emt 0:03:20]} 13. Bxf6 {[%emt 0:01:54]} Bxf6 {[%emt 0:08:37]} 14. Ng5 {[%emt 0:00:45]} Bxg5 {[%emt 0:00:45]} 15. Bxb7 {[%emt 0:00:09]} Nc6 {[%emt 0:01:49]} 16. Bxa8 {[%emt 0:00:42]} Rxa8 {[%emt 0:00:20]} 17. Qd3 {[%emt 0:06:10]} g6 {[%emt 0:16:24]} 18. Ne4 {[%emt 0:07:02]} Qf5 {[%emt 0:01:45]} 19. Nxg5 {[%emt 0:01:26]} Qxg5 {[%emt 0:00:06]} 20. Qe4 {[%emt 0:06:47]} Rc8 {[%emt 0:02:43]} 21. Rac1 {[%emt 0:09:56]} Ne7 {[%emt 0:00:17]} 22. Rxc8+ {[%emt 0:01:09]} Nxc8 {[%emt 0:00:07]} 23. Qb7 {[%emt 0:01:47]} Qc5 {[%emt 0:06:18]} 24. Rd1 {[%emt 0:00:08]} Nb6 {[%emt 0:07:10]} 25. Qxa7 {[%emt 0:00:52]} Kg7 {[%emt 0:00:28]} 26. Qa5 {[%emt 0:01:17]} Nd5 {[%emt 0:01:27]} 27. Qd2 {[%emt 0:00:04]} Nf6 {[%emt 0:00:23]} 28. Qd4 {[%emt 0:04:14]} Qc2 {[%emt 0:00:53]} 29. Qd2 {[%emt 0:00:02]} Qf5 {[%emt 0:00:37]} 30. Qd3 {[%emt 0:00:37]} Qh3 {[%emt 0:01:31]} 31. Qd4 {[%emt 0:00:32]} Qh5 {[%emt 0:00:20]} 32. f3 {[%emt 0:00:42]} Qf5 {[%emt 0:04:48]} 33. Kg2 {[%emt 0:00:47]} Qc2 {[%emt 0:03:54]} 34. Rd2 {[%emt 0:00:29]} Qc1 {[%emt 0:01:07]} 35. Rd1 {[%emt 0:00:17]} Qc2 {[%emt 0:00:27]} 36. Kf2 {[%emt 0:01:17]} e5 {[%emt 0:00:41]} 37. Qd2 {[%emt 0:00:03]} Qf5 {[%emt 0:01:19]} 38. Kg2 {[%emt 0:00:02]} h5 {[%emt 0:04:21]} 39. e4 {[%emt 0:01:04]} Qe6 {[%emt 0:00:37]} 40. Qd6 {[%emt 0:00:00]} Qxa2 {[%emt 0:00:00]} 41. Qxe5 {[%emt 0:03:01]} Qc4 {[%emt 0:05:42]} 42. Rd2 {[%emt 0:01:20]} h4 {[%emt 0:03:35]} 43. gxh4 {[%emt 0:06:41]} b4 {[%emt 0:03:18]} 44. h5 {[%emt 0:00:57]} Qa6 {[%emt 0:00:52]} 45. hxg6 {[%emt 0:00:47]} fxg6 {[%emt 0:04:52]} 46. Qe7+ {[%emt 0:03:17]} Kh6 {[%emt 0:00:10]} 47. Qd6 {[%emt 0:00:21]} 1-0

[Event "Najdorf Memorial-A 2022"]
[Site "Warsaw"]
[Date "2022.07.12"]
[Round "4.8"]
[White "Kaczmarska, Joanna"]
[Black "Kotowicz, Kamil"]
[Result "1/2-1/2"]
[ECO "D31"]
[WhiteElo "1965"]
[BlackElo "1770"]
[Annotator "ChessBase"]
[PlyCount "96"]
[EventDate "2022.07.09"]
[EventType "swiss"]
[EventCountry "POL"]
[SourceTitle "playchess.com"]
[Source "ChessBase"]
[SourceQuality "1"]
[TimeControl "40/5400+30:1800+30"]

1. d4 {[%emt 0:00:01]} d5 {[%emt 0:00:25]} 2. c4 {[%emt 0:00:04]} e6 {[%emt 0:00:14]} 3. Nc3 {[%emt 0:00:07]} c6 {[%emt 0:00:14]} 4. Qc2 {[%emt 0:04:12]} f5 {[%emt 0:01:38]} 5. Bf4 {[%emt 0:02:32]} Nf6 {[%emt 0:00:56]} 6. e3 {[%emt 0:00:56]} Be7 {[%emt 0:01:31]} 7. Nf3 {[%emt 0:03:49]} O-O {[%emt 0:01:54]} 8. Bd3 {[%emt 0:01:11]} Ne4 {[%emt 0:00:37]} 9. h4 {[%emt 0:03:03]} Nd7 {[%emt 0:06:05]} 10. O-O-O {[%emt 0:12:07]} Ndf6 {[%emt 0:02:24]} 11. Ne5 {[%emt 0:03:42]} Qa5 {[%emt 0:03:39]} 12. Bxe4 {[%emt 0:00:36]} Nxe4 {[%emt 0:02:46]} 13. Nxe4 {[%emt 0:00:27]} fxe4 {[%emt 0:02:10]} 14. Kb1 {[%emt 0:00:10]} Qd8 {[%emt 0:03:47]} 15. f3 {[%emt 0:04:18]} Bf6 {[%emt 0:09:23]} 16. fxe4 {[%emt 0:06:54]} a5 {[%emt 0:01:01]} 17. c5 {[%emt 0:04:29]} Bd7 {[%emt 0:00:45]} 18. Nxd7 {[%emt 0:12:00]} Qxd7 {[%emt 0:00:13]} 19. e5 {[%emt 0:01:46]} Bd8 {[%emt 0:00:34]} 20. h5 {[%emt 0:00:51]} b6 {[%emt 0:01:07]} 21. cxb6 {[%emt 0:02:54]} Bxb6 {[%emt 0:01:32]} 22. Rh3 {[%emt 0:01:15]} Rac8 {[%emt 0:02:37]} 23. h6 {[%emt 0:05:51]} g6 {[%emt 0:00:19]} 24. Qa4 {[%emt 0:04:24]} Qa7 {[%emt 0:01:45]} 25. Rf3 {[%emt 0:02:10]} c5 {[%emt 0:01:25]} 26. Bg5 {[%emt 0:03:34]} Rxf3 {[%emt 0:04:27]} 27. gxf3 {[%emt 0:00:05]} cxd4 {[%emt 0:00:09]} 28. exd4 {[%emt 0:00:19]} Qf7 {[%emt 0:00:24]} 29. Rc1 {[%emt 0:03:20]} Rxc1+ {[%emt 0:01:35]} 30. Kxc1 {[%emt 0:03:31]} Kf8 {[%emt 0:01:45]} 31. Qa3+ {[%emt 0:06:00]} Ke8 {[%emt 0:01:57]} 32. Qd6 {[%emt 0:00:28]} Qc7+ {[%emt 0:00:20]} 33. Qxc7 {[%emt 0:00:37]} Bxc7 {[%emt 0:00:04]} 34. Bd2 {[%emt 0:01:39]} Kd7 {[%emt 0:01:14]} 35. Kc2 {[%emt 0:00:23]} Kc6 {[%emt 0:01:07]} 36. a4 {[%emt 0:02:12]} Bd8 {[%emt 0:02:26]} 37. b4 {[%emt 0:00:54]} axb4 {[%emt 0:00:21]} 38. Bxb4 {[%emt 0:00:20]} Kb6 {[%emt 0:01:00]} 39. Bd2 {[%emt 0:01:32]} Ka6 {[%emt 0:02:43]} 40. Kb3 {[%emt 0:00:00]} Be7 {[%emt 0:00:00]} 41. Kc2 {[%emt 0:05:58]} Bf8 {[%emt 0:03:16]} 42. Kd3 {[%emt 0:00:17]} Kb6 {[%emt 0:00:50]} 43. Ke2 {[%emt 0:00:20]} Ba3 {[%emt 0:01:54]} 44. Kf2 {[%emt 0:05:50]} Bb2 {[%emt 0:00:49]} 45. Ke3 {[%emt 0:00:16]} Ka6 {[%emt 0:00:20]} 46. Kd3 {[%emt 0:05:11]} Ba3 {[%emt 0:02:49]} 47. Kc2 {[%emt 0:03:09]} Bf8 {[%emt 0:02:23]} 48. Kb3 {[%emt 0:00:07]} Be7 1/2-1/2

[Event "Najdorf Memorial-A 2022"]
[Site "Warsaw"]
[Date "2022.07.12"]
[Round "4.9"]
[White "Fiszer, Bartosz"]
[Black "Gorkiewicz, Mateusz"]
[Result "1/2-1/2"]
[ECO "C70"]
[WhiteElo "2228"]
[BlackElo "2023"]
[Annotator "ChessBase"]
[PlyCount "117"]
[EventDate "2022.07.09"]
[EventType "swiss"]
[EventCountry "POL"]
[SourceTitle "playchess.com"]
[Source "ChessBase"]
[SourceQuality "1"]
[TimeControl "40/5400+30:1800+30"]

1. e4 {[%emt 0:01:07]} e5 {[%emt 0:00:12]} 2. Nf3 {[%emt 0:00:09]} Nc6 {[%emt 0:00:17]} 3. Bb5 {[%emt 0:00:05]} a6 {[%emt 0:00:12]} 4. Ba4 {[%emt 0:00:05]} Bc5 {[%emt 0:00:27]} 5. c3 {[%emt 0:01:33]} Nge7 {[%emt 0:00:23]} 6. d4 {[%emt 0:00:41]} exd4 {[%emt 0:00:39]} 7. cxd4 {[%emt 0:00:07]} Bb4+ {[%emt 0:00:16]} 8. Bd2 {[%emt 0:03:10]} Bxd2+ {[%emt 0:02:44]} 9. Qxd2 {[%emt 0:03:22]} d5 {[%emt 0:06:46]} 10. exd5 {[%emt 0:15:19]} Nxd5 {[%emt 0:08:27]} 11. Bxc6+ {[%emt 0:02:26]} bxc6 {[%emt 0:00:16]} 12. O-O {[%emt 0:00:18]} O-O {[%emt 0:00:40]} 13. Rc1 {[%emt 0:06:29]} Ne7 {[%emt 0:06:27]} 14. Nc3 {[%emt 0:02:50]} Be6 {[%emt 0:04:32]} 15. Na4 {[%emt 0:03:44]} Bd5 {[%emt 0:06:47]} 16. Ne5 {[%emt 0:01:57]} f6 {[%emt 0:04:40]} 17. Nd3 {[%emt 0:02:42]} Qd7 {[%emt 0:01:50]} 18. Nf4 {[%emt 0:06:40]} Bf7 {[%emt 0:04:27]} 19. Nc5 {[%emt 0:02:13]} Qf5 {[%emt 0:02:22]} 20. Re1 {[%emt 0:07:33]} Nd5 {[%emt 0:04:33]} 21. Nxd5 {[%emt 0:04:19]} Bxd5 {[%emt 0:00:09]} 22. f3 {[%emt 0:02:29]} Rf7 {[%emt 0:06:49]} 23. b3 {[%emt 0:04:29]} h5 {[%emt 0:01:22]} 24. Re3 {[%emt 0:06:22]} Qg5 {[%emt 0:05:49]} 25. Rae1 {[%emt 0:00:36]} Re7 {[%emt 0:06:14]} 26. Qf2 {[%emt 0:07:25]} Rxe3 {[%emt 0:00:26]} 27. Qxe3 {[%emt 0:01:18]} Qxe3+ {[%emt 0:08:06]} 28. Rxe3 {[%emt 0:00:01]} Kf7 {[%emt 0:00:15]} 29. Kf2 {[%emt 0:00:40]} a5 {[%emt 0:00:26]} 30. Ke2 {[%emt 0:00:41]} g5 {[%emt 0:01:54]} 31. Kf2 {[%emt 0:01:10]} Rb8 {[%emt 0:01:55]} 32. Na6 {[%emt 0:01:28]} Rb7 {[%emt 0:00:22]} 33. Re2 {[%emt 0:01:58]} Ra7 {[%emt 0:01:48]} 34. Nc5 {[%emt 0:00:16]} Ra8 {[%emt 0:00:15]} 35. Re1 {[%emt 0:01:07]} h4 {[%emt 0:04:19]} 36. Re2 {[%emt 0:04:20]} Ra7 {[%emt 0:02:15]} 37. Na4 {[%emt 0:02:46]} Ra8 {[%emt 0:01:56]} 38. Rc2 {[%emt 0:00:42]} Ke7 {[%emt 0:02:51]} 39. Rc5 {[%emt 0:00:18]} Kd6 {[%emt 0:03:18]} 40. Nb2 {[%emt 0:00:00]} Kd7 {[%emt 0:00:00]} 41. Na4 {[%emt 0:02:50]} Ke6 {[%emt 0:05:41]} 42. Nc3 {[%emt 0:01:14]} Kd6 {[%emt 0:00:50]} 43. Kf1 {[%emt 0:01:03]} Ra6 {[%emt 0:01:38]} 44. Kg1 {[%emt 0:00:20]} Ra8 {[%emt 0:01:19]} 45. Kf2 {[%emt 0:00:11]} Ra6 {[%emt 0:05:33]} 46. g3 {[%emt 0:02:28]} hxg3+ {[%emt 0:01:22]} 47. Kxg3 {[%emt 0:00:18]} Ra8 {[%emt 0:06:23]} 48. h3 {[%emt 0:04:06]} f5 {[%emt 0:01:01]} 49. f4 {[%emt 0:00:51]} gxf4+ {[%emt 0:00:50]} 50. Kxf4 {[%emt 0:00:05]} Be6 {[%emt 0:02:46]} 51. Re5 {[%emt 0:21:37]} Rh8 {[%emt 0:01:07]} 52. Kg3 {[%emt 0:00:30]} Rg8+ {[%emt 0:04:53]} 53. Kh2 {[%emt 0:00:40]} Ra8 {[%emt 0:01:29]} 54. Na4 {[%emt 0:03:45]} Rf8 {[%emt 0:00:59]} 55. Nc5 {[%emt 0:01:01]} Bd5 {[%emt 0:00:14]} 56. Nb7+ {[%emt 0:00:03]} Kd7 {[%emt 0:00:08]} 57. Nc5+ {[%emt 0:00:02]} Kd6 {[%emt 0:00:07]} 58. Nb7+ {[%emt 0:02:56]} Kd7 {[%emt 0:00:07]} 59. Nc5+ {[%emt 0:00:14]} 1/2-1/2

[Event "Najdorf Memorial-A 2022"]
[Site "Warsaw"]
[Date "2022.07.12"]
[Round "4.9"]
[White "Owoc, Jakub"]
[Black "Siekanska, Maria"]
[Result "1-0"]
[ECO "B90"]
[WhiteElo "1756"]
[BlackElo "1964"]
[Annotator "ChessBase"]
[PlyCount "58"]
[EventDate "2022.07.09"]
[EventType "swiss"]
[EventCountry "POL"]
[SourceTitle "playchess.com"]
[Source "ChessBase"]
[SourceQuality "1"]
[TimeControl "40/5400+30:1800+30"]

1. e4 {[%emt 0:00:02]} c5 {[%emt 0:00:07]} 2. Nf3 {[%emt 0:00:04]} d6 {[%emt 0:00:25]} 3. d4 {[%emt 0:00:27]} cxd4 {[%emt 0:00:08]} 4. Nxd4 {[%emt 0:00:05]} Nf6 {[%emt 0:00:07]} 5. Nc3 {[%emt 0:00:06]} a6 {[%emt 0:00:09]} 6. Rg1 {[%emt 0:00:04]} h5 {[%emt 0:01:08]} 7. h3 {[%emt 0:01:48]} e5 {[%emt 0:01:37]} 8. Nb3 {[%emt 0:00:12]} Be6 {[%emt 0:00:33]} 9. Be3 {[%emt 0:00:06]} Nc6 {[%emt 0:01:27]} 10. Qd2 {[%emt 0:00:28]} b5 {[%emt 0:10:50]} 11. O-O-O {[%emt 0:05:06]} Na5 {[%emt 0:26:15]} 12. Nd5 {[%emt 0:26:01]} Nxb3+ {[%emt 0:11:05]} 13. axb3 {[%emt 0:00:05]} Bxd5 {[%emt 0:12:14]} 14. exd5 {[%emt 0:00:05]} Qc7 {[%emt 0:01:02]} 15. f4 {[%emt 0:02:47]} Nd7 {[%emt 0:04:30]} 16. g4 {[%emt 0:02:13]} hxg4 {[%emt 0:00:33]} 17. Rxg4 {[%emt 0:00:27]} g6 {[%emt 0:02:30]} 18. Re1 O-O-O {[%emt 0:02:48]} 19. Kb1 {[%emt 0:04:53]} Re8 {[%emt 0:03:29]} 20. c4 {[%emt 0:01:23]} Nf6 {[%emt 0:00:31]} 21. cxb5 {[%emt 0:00:40]} Kb8 {[%emt 0:00:59]} 22. Rc1 {[%emt 0:04:43]} Qd7 {[%emt 0:02:51]} 23. bxa6 {[%emt 0:01:00]} Rc8 {[%emt 0:05:15]} 24. Rxc8+ {[%emt 0:00:55]} Qxc8 {[%emt 0:00:37]} 25. Bb5 {[%emt 0:01:22]} Nxg4 {[%emt 0:01:43]} 26. a7+ {[%emt 0:00:07]} Ka8 {[%emt 0:00:12]} 27. Bc6+ {[%emt 0:00:05]} Qxc6 {[%emt 0:00:11]} 28. dxc6 {[%emt 0:00:04]} Bg7 {[%emt 0:01:00]} 29. Qb4 {[%emt 0:00:05]} Rb8 {[%emt 0:00:04]} 1-0